Workbook

Sheet Bilgiler
A1: Id | B1: Birlik | C1: SağlıkTesisi | D1: Künye | E1: RaporNo | F1: Tür | G1: Cihaz | H1: Üretici | I1: Model | J1: Seri | K1: Lokasyon | L1: KalTarihi | M1: GeçTarihi | N1: RaporTarihi | O1: KalibrasyonYapan | P1: Ünvanı | Q1: ZimmetSahibi | R1: NezaretEden | S1: FizikselKontrol | T1: Uygun | U1: Uygunsuz | V1: Sınırlı | W1: UzmanGörüşü | X1: Yorum | Y1: Not
A2: 1 | B2: - | C2: MERCEDES- BENZ TÜRK A.Ş. | D2: - | E2: 6209-0524-153 | F2: - | G2: AED DEFİBRİLATÖR | H2: METRAX | I2: M250 | J2: 73946003296 | K2: Akçaburgaz Mahallesi Süleyman Şah Caddesi No:6 34522 Esenyurt / İstanbul | L2: 28.05.2024 | M2: 28.05.2025 | N2: 05.06.2025 | O2: NAZİF İLKER SEZDİ | P2: BİYOMEDİKAL TEKNİKERİ | Q2: - | R2: - | S2: √ | T2: √ | U2: - | V2: - | W2: Cihazın toleranslar dahilinde çalıştığı tespit edilmiştir.
B4: GENEL RAPOR BİLGİLERİ
B5: Sayfa Sayısı | C5: 3
B6: Test Sayısı | C6: 1
B7: Biyomedikal Tür | C7: FLOWMETRE
B8: Lab. Sorumlusu | C8: NAZİF İLKER SEZDİ
B9: Ünvanı
B11: STANDART BİLGİLERİ
B12: 1. Standart | C12: TS EN ISO 10524-1
B13: 1. Standart Başlığı | C13: Basınç Regülatörleri Ve Debimetreli Basınç Regülatörleri
B14: 1. Test Madde No | C14: 5.4.14.1
B15: 1. Test Başlığı | C15: Debi Kararlılığı ve Doğruluğu
B16: 1. Revizyon Tarihi | C16: Tem.2006
B18: 2. Standart
B19: 2. Standart Başlığı
B20: 2. Test Madde No
B21: 2. Test Başlığı
B22: 2. Revizyon Tarihi
B24: 3. Standart
B25: 3. Standart Başlığı
B26: 3. Test Madde No
B27: 3. Test Başlığı
B28: 3. Revizyon Tarihi

Sheet İzlenebilirlik
A1: Id | B1: Kodu | C1: Cihaz | D1: Üretici | E1: Model | F1: Seri | G1: İzlenebilirlik | H1: SertifikaNo | I1: KalTarihi | J1: GecTarihi
A2: 1 | B2: K125 | C2: ELEKTRİKSEL GÜVENLİK ANALİZÖRÜ | D2: DATREND | E2: VPAD MINI | F2: VPM18040013 | G2: TDB | H2: AB-0176-K 24-06837-R2 | I2: 2024-03-22 | J2: 2025-03-22
A3: 2 | B3: K185 | C3: DEFİBRİLATÖR ANALİZÖR | D3: DATREND | E3: PHASE 3 | F3: PH23031263 | G3: DATREND | H3: DT-275 | I3: 2023-03-30 | J3: 2024-06-30
A4: 3 | B4: - | C4: - | D4: - | E4: - | F4: - | G4: - | H4: - | I4: 1991-09-20 | J4: 1991-09-20

Sheet Rapor
AG8: AB-1251-T
AG10: =Bilgiler!E2 -> 6209-0524-153
AG12: =Bilgiler!L2 -> 28.05.2024
C16: Cihazın Sahibi / Adresi | J16: : | K16: =Bilgiler!C2 -> MERCEDES- BENZ TÜRK A.Ş.
C17: Customer
K18: =CONCATENATE("Lokasyon: ",Bilgiler!K2," - ", "Adres: ",Bilgiler!F2) -> Lokasyon: Akçaburgaz Mahallesi Süleyman Şah Caddesi No:6 34522 Esenyurt / İstanbul - Adres: -
C20: Proje/Teklif Numarası | J20: : | K20: =Bilgiler!B2 -> -
C21: Order Number
C23: Makine / Cihaz | J23: : | K23: =Bilgiler!G2 -> AED DEFİBRİLATÖR
C24: Instrument / Device
C26: İmalatçı | J26: : | K26: =Bilgiler!H2 -> METRAX
C27: Manufacturer
C29: Tip | J29: : | K29: =Bilgiler!I2 -> M250
C30: Type
C32: Kalibrasyon Tarihi | J32: : | K32: =Bilgiler!L2 -> 28.05.2024 | T32: Seri Numarası : | Z32: =Bilgiler!J2 -> 73946003296
C33: Date of Calibration | T33: Serial Number
C35: Rapor Sayfa Sayısı | J35: : | K35: 3 | T35: Künye Numarası : | Z35: =Bilgiler!D2 -> -
C36: Total Number of Certificate | T36: Identity Number
C50: Mühür | I50: Tarih | P50: Deneyi Yapan | AA50: Sorumlu Müdür
C51: Seal | I51: Date | P51: Experimenter | AA51: Responsible Manager
I52: =Bilgiler!N2 -> 05.06.2025 | P52: =Bilgiler!O2 -> NAZİF İLKER SEZDİ | AA52: =Bilgiler!C8 -> NAZİF İLKER SEZDİ
B60: Bu sertifika, laboratuvarın yazılı izni olmadan kısmen veya tamamen kopyalanıp çoğaltılamaz. İmzasız sertifikalar geçersizdir.
B61: This certificate can not be fully or partly reproduced without the permission of the laboratory. Calibration certificates without signature are not valid.
B62: MB4001/ Yay.tar: 04.12.2008 /Rev.tar: 23.01.2024/Rev.no: 7 | Y62: Sayfa No / Number of Pages: | AI62: 1 | AJ62: / | AK62: 3
AG65: =AG8 -> AB-1251-T
AG67: =AG10 -> 6209-0524-153
AG69: =AG12 -> 28.05.2024
C75: Test ve Deneyi Yapılan Cihaz Bilgileri :
C76: Instrument Details
C77: Künye No | H77: : | I77: =Bilgiler!D2 -> -
C78: Imprint No
C79: Makine Cihaz | H79: : | I79: =Bilgiler!G2 -> AED DEFİBRİLATÖR
C80: Instrument/Device
C81: Üretici | H81: : | I81: =Bilgiler!H2 -> METRAX
C82: Manufacturer
C83: Tip | H83: : | I83: =Bilgiler!I2 -> M250
C84: Type
C85: Seri Numarası | H85: : | I85: =Bilgiler!J2 -> 73946003296
C86: Serial Number
C116: Kalibrasyon sırasında kullanılan referanslar ve cihazlar:
C117: References and devices used during calibration:
C118: Cihaz | L118: Marka | Q118: Model | V118: Seri Numarası | AA118: Sertifika No | AF118: İzlenebilirlik | AJ118: Kalib.Tarihi
C119: Device | L119: Marka | Q119: Model | V119: Serial Num. | AA119: Certificate Number | AF119: Traceability | AJ119: Cal.Date
C120: =İzlenebilirlik!C2 -> ELEKTRİKSEL GÜVENLİK ANALİZÖRÜ | L120: =İzlenebilirlik!D2 -> DATREND | Q120: =İzlenebilirlik!E2 -> VPAD MINI | V120: =İzlenebilirlik!F2 -> VPM18040013 | AA120: =İzlenebilirlik!H2 -> AB-0176-K 24-06837-R2 | AF120: =İzlenebilirlik!G2 -> TDB | AJ120: =IF(İzlenebilirlik!C2="-","-",İzlenebilirlik!I2) -> 2024-03-22
C121: =İzlenebilirlik!C3 -> DEFİBRİLATÖR ANALİZÖR | L121: =İzlenebilirlik!D3 -> DATREND | Q121: =İzlenebilirlik!E3 -> PHASE 3 | V121: =İzlenebilirlik!F3 -> PH23031263 | AA121: =İzlenebilirlik!H3 -> DT-275 | AF121: =İzlenebilirlik!G3 -> DATREND | AJ121: =IF(İzlenebilirlik!C3="-","-",İzlenebilirlik!I3) -> 2023-03-30
C122: =İzlenebilirlik!C4 -> - | L122: =İzlenebilirlik!D4 -> - | Q122: =İzlenebilirlik!E4 -> - | V122: =İzlenebilirlik!F4 -> - | AA122: =İzlenebilirlik!H4 -> - | AF122: =İzlenebilirlik!G4 -> - | AJ122: =IF(İzlenebilirlik!C4="-","-",İzlenebilirlik!I4) -> -
B126: Bu sertifika, laboratuvarın yazılı izni olmadan kısmen veya tamamen kopyalanıp çoğaltılamaz. İmzasız sertifikalar geçersizdir.
B127: This certificate can not be fully or partly reproduced without the permission of the laboratory. Calibration certificates without signature are not valid.
B128: MB4001/ Yay.tar: 04.12.2008 /Rev.tar: 23.01.2024/Rev.no: 7 | Y128: Sayfa No / Number of Pages: | AI128: 2 | AJ128: / | AK128: 3
AG131: =AG8 -> AB-1251-T
AG133: =AG10 -> 6209-0524-153
AG135: =AG12 -> 28.05.2024
G142: SARJ TUTABİLME ÖZELLİĞİ
G143: Tolerans | Q143: Ayarlanan joule | W143: Ölçülen joule | AC143: Sonuç
G144: Cihaz maksimum joule değerine şarj olduktan 60 sn. Min %85 | Q144: 200 | W144: 263 | AC144: √
G146: ENERJİ (Joule) PERFORMANS TESTİ
G147: Tolerans | P147: Ayarlanan (joule) | U147: Ölçülen (joule) | Y147: Sapma | AB147: Belirsizlik | AE147: Sonuç
G148: RL = 50 Ohm Cihazın verebildiği enerji, 25 Joule altında :+/-4 Joule; üzerinde ise +/- %15 tolerans değerleri arasında olmalıdır. | P148: 200 | U148: =IF(Bilgiler!AA65="X"," ",IF('PERFORMANS Testi'!G$2="",(RAND()*(P148*0.99-P148*1.03)-P148*0.99)*(-1),'PERFORMANS Testi'!G65)) -> 205.3402298 | Y148: =IF(Bilgiler!AA65="X"," ",U148-P148) -> 5.340229774 | AB148: =IF(Bilgiler!AA65="X"," ",(SQRT((U148*0.02)^2+(0.005/SQRT(3))^2))/100) -> 0.0410680561 | AE148: √
P149: 200 | U149: =IF(Bilgiler!AA65="X"," ",IF('PERFORMANS Testi'!H$2="",(RAND()*(P149*0.99-P149*1.03)-P149*0.99)*(-1),'PERFORMANS Testi'!H65)) -> 204.4955217 | Y149: =IF(Bilgiler!AA65="X"," ",U149-P149) -> 4.495521659 | AB149: =IF(Bilgiler!AA65="X"," ",(SQRT((U149*0.02)^2+(0.005/SQRT(3))^2))/100) -> 0.04089911452 | AE149: √
P150: 200 | U150: =IF(Bilgiler!AA65="X"," ",IF('PERFORMANS Testi'!K$2="",(RAND()*(P150*0.99-P150*1.03)-P150*0.99)*(-1),'PERFORMANS Testi'!K65)) -> 200.3466271 | Y150: =IF(Bilgiler!AA65="X"," ",U150-P150) -> 0.346627107 | AB150: =IF(Bilgiler!AA65="X"," ",(SQRT((U150*0.02)^2+(0.005/SQRT(3))^2))/100) -> 0.04006933582 | AE150: √
P151: 200 | U151: =IF(Bilgiler!AA65="X"," ",IF('PERFORMANS Testi'!M$2="",(RAND()*(P151*0.99-P151*1.03)-P151*0.99)*(-1),'PERFORMANS Testi'!M65)) -> 199.3302547 | Y151: =IF(Bilgiler!AA65="X"," ",U151-P151) -> -0.6697452501 | AB151: =IF(Bilgiler!AA65="X"," ",(SQRT((U151*0.02)^2+(0.005/SQRT(3))^2))/100) -> 0.0398660614 | AE151: √
P152: 200 | U152: =IF(Bilgiler!AA65="X"," ",IF('PERFORMANS Testi'!Q$2="",(RAND()*(P152*0.99-P152*1.03)-P152*0.99)*(-1),'PERFORMANS Testi'!Q65)) -> 198.6474583 | Y152: =IF(Bilgiler!AA65="X"," ",U152-P152) -> -1.35254168 | AB152: =IF(Bilgiler!AA65="X"," ",(SQRT((U152*0.02)^2+(0.005/SQRT(3))^2))/100) -> 0.03972950215 | AE152: √
G173: FİZİKSEL KONTROL
G174: Kontrol Edilen Bölgeler | AD174: Sonuç
G175: Şase Dış Muhafaza | AD175: =IF(Bilgiler!Z47="X",IF('PERFORMANS Testi'!$AR$2="","√",'PERFORMANS Testi'!$AR$2),"√") -> √
G176: Gösterge ve LCD ekran ve paneller | AD176: =IF(Bilgiler!Z47="X",IF('PERFORMANS Testi'!$AS$2="","√",'PERFORMANS Testi'!$AS$2),"√") -> √
G177: Montaj ve Yerleşimler | AD177: =IF(Bilgiler!Z47="X",IF('PERFORMANS Testi'!$AT$2="","√",'PERFORMANS Testi'!$AT$2),"√") -> √
G178: Besleme, Elektrik kablo ve prizleri | AD178: =IF(Bilgiler!Z47="X",IF('PERFORMANS Testi'!$AU$2="","√",'PERFORMANS Testi'!$AU$2),"√") -> √
G179: Butonlar, düğmeler | AD179: =IF(Bilgiler!Z47="X",IF('PERFORMANS Testi'!$AV$2="","√",'PERFORMANS Testi'!$AV$2),"√") -> √
G180: Alarm ses ve lamba/ledleri | AD180: =IF(Bilgiler!Z47="X",IF('PERFORMANS Testi'!$AW$2="","√",'PERFORMANS Testi'!$AW$2),"√") -> √
G181: Pil – Akü ve Batarya Fiziksel kontrol | AD181: =IF(Bilgiler!Z47="X",IF('PERFORMANS Testi'!$AX$2="","√",'PERFORMANS Testi'!$AX$2),"√") -> √
G182: Etiketler ve Uyarı İşaretleri | AD182: =IF(Bilgiler!Z47="X",IF('PERFORMANS Testi'!$AY$2="","√",'PERFORMANS Testi'!$AY$2),"√") -> √
C184: UZMAN GÖRÜŞÜ | G184: =Bilgiler!W2 -> Cihazın toleranslar dahilinde çalıştığı tespit edilmiştir.
B191: Bu sertifika, laboratuvarın yazılı izni olmadan kısmen veya tamamen kopyalanıp çoğaltılamaz. İmzasız sertifikalar geçersizdir.
B192: This certificate can not be fully or partly reproduced without the permission of the laboratory. Calibration certificates without signature are not valid.
B193: MB4001/ Yay.tar: 04.12.2008 /Rev.tar: 23.01.2024/Rev.no: 7 | Y193: Sayfa No / Number of Pages: | AI193: 3 | AJ193: / | AK193: 3

Sheet PERFORMANS Testi
A1: id | B1: O1 | C1: O2 | D1: O3 | E1: O4 | F1: O5 | G1: O6 | H1: O7 | I1: O8 | J1: O9 | K1: O10 | L1: O11 | M1: O12 | N1: O13 | O1: O14 | P1: O15 | Q1: O16 | R1: O17 | S1: O18 | T1: O19 | U1: O20 | V1: O21 | W1: O22 | X1: O23 | Y1: O24 | Z1: O25 | AA1: O26 | AB1: O27 | AC1: O28 | AD1: O29 | AE1: O30 | AF1: O31 | AG1: O32 | AH1: O33 | AI1: O34 | AJ1: O35 | AK1: O36 | AL1: O37 | AM1: O38 | AN1: O39 | AO1: O40 | AP1: O41 | AQ1: O42 | AR1: O43 | AS1: O44 | AT1: O45 | AU1: O46 | AV1: O47 | AW1: O48 | AX1: O49 | AY1: O50 | AZ1: rapor_no
A2: 1

Sheet EGT Testi
A1: Id | B1: ŞEBEKE GERİLİMİ [v] | C1: YÜK AKIMI [a] | D1: TOPRAK DİRENCİ | E1: TOPRAK-KACAK-NC-µA | F1: TOPRAK-KACAK-SFC-µA | G1: GÖVDE-KAÇAK-NC | H1: GÖVDE-KAÇAK-SFC-PE | I1: GÖVDE-KAÇAK-SFC-LINE | J1: GÜÇ | K1: İZOLASYON-DİRENCİ | L1: EKİPMAN-KAÇAK µA | M1: HASTA-KACAK | N1: HASTA-KACAK | O1: HASTA-KACAK | P1: HASTA-KACAK | Q1: HASTA-KACAK | R1: EGT UZMAN GÖRÜŞÜ
A2: 1 | B2: =RANDBETWEEN(207,245) -> 230 | C2: =RANDBETWEEN(0,16)/100+RANDBETWEEN(100,900)/1000 -> 0.364 | D2: =RANDBETWEEN(0,2)/50+RANDBETWEEN(1,10)/100 -> 0.01 | E2: =RANDBETWEEN(20,480) -> 61 | F2: =RANDBETWEEN(20,980) -> 358 | G2: =RANDBETWEEN(4,92) -> 89 | H2: =RANDBETWEEN(40,420) -> 378 | I2: =RANDBETWEEN(40,420) -> 167 | J2: =RANDBETWEEN(40,150)+RANDBETWEEN(1,9)/10 -> 125.4 | K2: =RANDBETWEEN(81,120) -> 90 | L2: =RANDBETWEEN(68,385) -> 377 | M2: =RANDBETWEEN(8,98)/10000 -> 0.0015 | N2: =RANDBETWEEN(8,98)/10000 -> 0.0042 | O2: 0.0093 | P2: 0.0032 | Q2: 0.0052 | R2: Cihaz; IEC60601-1 standartlarına göre Elektriksel Güvenlik Ölçüm testlerinden geçmiştir.
